Workbook

Sheet Mieterliste
A1: Land | B1: Ort | C1: PLZ | D1: Adresse | E1: Top | F1: Mieter | G1: Nutzung | H1: Fläche belegt | I1: Soll-Miete pro m² | J1: Soll-Miete pro Monat | K1: Ist-Miete pro m² | L1: Ist-Miete pro Monat | M1: BK pro Monat | N1: BK pro m² | O1: Vertrags-beginn | P1: Vertrags-ende | Q1: KVZ | R1: Letzte Indexierung | S1: Art der Indexierung
A2: AT | B2: Wien | C2: 1010 | D2: TEST (Flo) | E2: Holzstube | F2: Toro | G2: W | H2: 60 | I2: =IF(H2=0,0,J2/H2) -> 10 | J2: 600 | K2: =IF(H2=0,0,L2/H2) -> 8.333333333 | L2: 500 | M2: 0 | N2: =IF(H2=0,0,M2/H2) -> 0
A3: AT | B3: Wien | C3: 1010 | D3: Teststraße 8 | E3: 101 |10| | F3: Mieter 46 | G3: W | H3: 123.88 | I3: 3.908621246 | J3: 484.2 | K3: 3.908621246 | L3: 484.2 | M3: 184.66 | N3: 1.490636099
A4: AT | B4: Wien | C4: 1010 | D4: Teststraße 8 | E4: 101 |351787| | F4: Mieter 46 | G4: W | H4: 123.88 | I4: 4.093719729 | J4: 507.13 | K4: 3.908621246 | L4: 484.2 | M4: 277.29 | N4: 2.238375848
A5: AT | B5: Wien | C5: 1010 | D5: Teststraße 8 | E5: 103 |30| | F5: Mieter 72 | G5: W | H5: 40.03 | I5: 8.699975019 | J5: 348.26 | K5: 8.699975019 | L5: 348.26 | M5: 59.67 | N5: 1.490632026
A6: AT | B6: Wien | C6: 1010 | D6: Teststraße 8 | E6: 103 |351789| | F6: Mieter 72 | G6: W | H6: 40.03 | I6: 8.949787659 | J6: 358.26 | K6: 8.699975019 | L6: 348.26 | M6: 101.6 | N6: 2.538096428
A7: AT | B7: Wien | C7: 1010 | D7: Teststraße 8 | E7: 104 |351790| | F7: Mieter 47 | G7: W | H7: 55.94 | I7: 1.065606006 | J7: 59.61 | K7: 1.061315695 | L7: 59.37 | M7: 142 | N7: 2.538434036
A8: AT | B8: Wien | C8: 1010 | D8: Teststraße 8 | E8: 104 |40| | F8: Mieter 47 | G8: W | H8: 55.94 | I8: 0 | J8: 0 | K8: 0 | L8: 0 | M8: 83.39 | N8: 1.490704326
A9: AT | B9: Wien | C9: 1010 | D9: Teststraße 8 | E9: 106 |351791| | F9: Mieter 48 | G9: W | H9: 37.7 | I9: 8.041644562 | J9: 303.17 | K9: 7.950132626 | L9: 299.72 | M9: 95.7 | N9: 2.538461538
A10: AT | B10: Wien | C10: 1010 | D10: Teststraße 8 | E10: 106 |50| | F10: Mieter 48 | G10: W | H10: 37.7 | I10: 7.950132626 | J10: 299.72 | K10: 7.950132626 | L10: 299.72 | M10: 56.2 | N10: 1.49071618
A11: AT | B11: Wien | C11: 1010 | D11: Teststraße 8 | E11: 108 |351792| | F11: Mieter 49 | G11: W | H11: 73.69 | I11: 8.738363414 | J11: 643.93 | K11: 8.687067445 | L11: 640.15 | M11: 187.05 | N11: 2.538336274
A12: AT | B12: Wien | C12: 1010 | D12: Teststraße 8 | E12: 108 |60| | F12: Mieter 49 | G12: W | H12: 73.69 | I12: 8.687067445 | J12: 640.15 | K12: 8.687067445 | L12: 640.15 | M12: 109.85 | N12: 1.490704302
A13: AT | B13: Wien | C13: 1010 | D13: Teststraße 8 | E13: 109 |351793| | F13: Mieter 50 | G13: W | H13: 32.42 | I13: 8.772671191 | J13: 284.41 | K13: 8.637569402 | L13: 280.03 | M13: 82.29 | N13: 2.538247995
A14: AT | B14: Wien | C14: 1010 | D14: Teststraße 8 | E14: 109 |70| | F14: Mieter 50 | G14: W | H14: 32.42 | I14: 8.637569402 | J14: 280.03 | K14: 8.637569402 | L14: 280.03 | M14: 48.33 | N14: 1.490746453
A15: AT | B15: Wien | C15: 1010 | D15: Teststraße 8 | E15: 110 |351794| | F15: Mieter 51 | G15: W | H15: 41.71 | I15: 8.759290338 | J15: 365.35 | K15: 8.700071925 | L15: 362.88 | M15: 105.87 | N15: 2.53824023
A16: AT | B16: Wien | C16: 1010 | D16: Teststraße 8 | E16: 110 |80| | F16: Mieter 51 | G16: W | H16: 41.71 | I16: 8.700071925 | J16: 362.88 | K16: 8.700071925 | L16: 362.88 | M16: 62.17 | N16: 1.490529849
A17: AT | B17: Wien | C17: 1010 | D17: Teststraße 8 | E17: 112 |351795| | F17: Mieter 52 | G17: W | H17: 55.09 | I17: 8.824650572 | J17: 486.15 | K17: 8.546741695 | L17: 470.84 | M17: 139.83 | N17: 2.538210201
A18: AT | B18: Wien | C18: 1010 | D18: Teststraße 8 | E18: 112 |90| | F18: Mieter 52 | G18: W | H18: 55.09 | I18: 8.546741695 | J18: 470.84 | K18: 8.546741695 | L18: 470.84 | M18: 82.12 | N18: 1.490651661
A19: AT | B19: Wien | C19: 1010 | D19: Teststraße 8 | E19: 113 |100| | F19: Mieter 53 | G19: W | H19: 45.76 | I19: 0 | J19: 0 | K19: 0 | L19: 0 | M19: 68.21 | N19: 1.490603147
A20: AT | B20: Wien | C20: 1010 | D20: Teststraße 8 | E20: 113 |351796| | F20: Mieter 53 | G20: W | H20: 45.76 | I20: 1.090909091 | J20: 49.92 | K20: 1.041958042 | L20: 47.68 | M20: 116.15 | N20: 2.538243007
A21: AT | B21: Wien | C21: 1010 | D21: Teststraße 8 | E21: 114 |110| | F21: Mieter 54 | G21: W | H21: 58.85 | I21: 8.624808836 | J21: 507.57 | K21: 8.624808836 | L21: 507.57 | M21: 87.72 | N21: 1.490569244
A22: AT | B22: Wien | C22: 1010 | D22: Teststraße 8 | E22: 114 |351797| | F22: Mieter 54 | G22: W | H22: 58.85 | I22: 8.808496177 | J22: 518.38 | K22: 8.624808836 | L22: 507.57 | M22: 149.37 | N22: 2.538147833
A23: AT | B23: Wien | C23: 1010 | D23: Teststraße 8 | E23: 115 |120| | F23: Mieter 73 | G23: W | H23: 41.41 | I23: 8.765274088 | J23: 362.97 | K23: 8.765274088 | L23: 362.97 | M23: 61.73 | N23: 1.490702729
A24: AT | B24: Wien | C24: 1010 | D24: Teststraße 8 | E24: 115 |351798| | F24: Mieter 73 | G24: W | H24: 41.41 | I24: 8.82854383 | J24: 365.59 | K24: 8.765274088 | L24: 362.97 | M24: 105.11 | N24: 2.538275779
A25: AT | B25: Wien | C25: 1010 | D25: Teststraße 8 | E25: 116 |130| | F25: Mieter 55 | G25: W | H25: 38.06 | I25: 8.891224383 | J25: 338.4 | K25: 8.891224383 | L25: 338.4 | M25: 56.73 | N25: 1.490541251
A26: AT | B26: Wien | C26: 1010 | D26: Teststraße 8 | E26: 116 |351799| | F26: Mieter 55 | G26: W | H26: 38.06 | I26: 8.987388334 | J26: 342.06 | K26: 8.891224383 | L26: 338.4 | M26: 96.6 | N26: 2.53809774
A27: AT | B27: Wien | C27: 1010 | D27: Teststraße 8 | E27: 117 |140| | F27: Mieter 56 | G27: W | H27: 54.08 | I27: 6.198409763 | J27: 335.21 | K27: 6.198409763 | L27: 335.21 | M27: 80.61 | N27: 1.490569527
A28: AT | B28: Wien | C28: 1010 | D28: Teststraße 8 | E28: 117 |351800| | F28: Mieter 56 | G28: W | H28: 54.08 | I28: 6.294933432 | J28: 340.43 | K28: 6.198409763 | L28: 335.21 | M28: 137.27 | N28: 2.538276627
A29: AT | B29: Wien | C29: 1010 | D29: Teststraße 8 | E29: 201 |150| | F29: Mieter 57 | G29: W | H29: 124.45 | I29: 3.7638409 | J29: 468.41 | K29: 3.7638409 | L29: 468.41 | M29: 185.5 | N29: 1.490558457
A30: AT | B30: Wien | C30: 1010 | D30: Teststraße 8 | E30: 201 |351801| | F30: Mieter 57 | G30: W | H30: 124.45 | I30: 3.944475693 | J30: 490.89 | K30: 3.7638409 | L30: 468.41 | M30: 278.56 | N30: 2.238328646
A31: AT | B31: Wien | C31: 1010 | D31: Teststraße 8 | E31: 202 |160| | F31: Mieter 58 | G31: W | H31: 94.34 | I31: 6.65242739 | J31: 627.59 | K31: 6.65242739 | L31: 627.59 | M31: 140.63 | N31: 1.490672037
A32: AT | B32: Wien | C32: 1010 | D32: Teststraße 8 | E32: 202 |351802| | F32: Mieter 58 | G32: W | H32: 94.34 | I32: 6.81503074 | J32: 642.93 | K32: 6.65242739 | L32: 627.59 | M32: 211.17 | N32: 2.238393046
A33: AT | B33: Wien | C33: 1010 | D33: Teststraße 8 | E33: 203 |170| | F33: Mieter 59 | G33: W | H33: 70.49 | I33: 8.062420201 | J33: 568.32 | K33: 8.062420201 | L33: 568.32 | M33: 105.08 | N33: 1.490707902
A34: AT | B34: Wien | C34: 1010 | D34: Teststraße 8 | E34: 203 |351803| | F34: Mieter 59 | G34: W | H34: 70.49 | I34: 8.277344304 | J34: 583.47 | K34: 8.062420201 | L34: 568.32 | M34: 178.93 | N34: 2.538374237
A35: AT | B35: Wien | C35: 1010 | D35: Teststraße 8 | E35: 204 |180| | F35: Mieter 60 | G35: W | H35: 27.89 | I35: 0 | J35: 0 | K35: 0 | L35: 0 | M35: 41.57 | N35: 1.490498387
A36: AT | B36: Wien | C36: 1010 | D36: Teststraße 8 | E36: 204 |351804| | F36: Mieter 60 | G36: W | H36: 27.89 | I36: 2.647185371 | J36: 73.83 | K36: 2.542488347 | L36: 70.91 | M36: 49.93 | N36: 1.790247401
A37: AT | B37: Wien | C37: 1010 | D37: Teststraße 8 | E37: 205 |190| | F37: Mieter 60 | G37: W | H37: 40.04 | I37: 0 | J37: 0 | K37: 0 | L37: 0 | M37: 59.69 | N37: 1.490759241
A38: AT | B38: Wien | C38: 1010 | D38: Teststraße 8 | E38: 205 |351805| | F38: Mieter 60 | G38: W | H38: 40.04 | I38: 0 | J38: 0 | K38: 0 | L38: 0 | M38: 101.64 | N38: 2.538461538
A39: AT | B39: Wien | C39: 1010 | D39: Teststraße 8 | E39: 206 |200| | F39: Mieter 61 | G39: W | H39: 37.49 | I39: 7.863430248 | J39: 294.8 | K39: 7.863430248 | L39: 294.8 | M39: 55.88 | N39: 1.490530808
A40: AT | B40: Wien | C40: 1010 | D40: Teststraße 8 | E40: 206 |351806| | F40: Mieter 61 | G40: W | H40: 37.49 | I40: 8.118431582 | J40: 304.36 | K40: 7.863430248 | L40: 294.8 | M40: 95.15 | N40: 2.538010136
A41: AT | B41: Wien | C41: 1010 | D41: Teststraße 8 | E41: 207 |210| | F41: Mieter 62 | G41: W | H41: 56.51 | I41: 7.840736153 | J41: 443.08 | K41: 7.840736153 | L41: 443.08 | M41: 84.24 | N41: 1.490709609
A42: AT | B42: Wien | C42: 1010 | D42: Teststraße 8 | E42: 207 |351807| | F42: Mieter 62 | G42: W | H42: 56.51 | I42: 7.978410901 | J42: 450.86 | K42: 7.840736153 | L42: 443.08 | M42: 143.45 | N42: 2.538488763
A43: AT | B43: Wien | C43: 1010 | D43: Teststraße 8 | E43: 208 |220| | F43: Mieter 63 | G43: W | H43: 38.82 | I43: 8.891293148 | J43: 345.16 | K43: 8.891293148 | L43: 345.16 | M43: 57.87 | N43: 1.49072643
A44: AT | B44: Wien | C44: 1010 | D44: Teststraße 8 | E44: 208 |351808| | F44: Mieter 63 | G44: W | H44: 38.82 | I44: 9.00309119 | J44: 349.5 | K44: 8.891293148 | L44: 345.16 | M44: 98.54 | N44: 2.538382277
A45: AT | B45: Wien | C45: 1010 | D45: Teststraße 8 | E45: 209 |230| | F45: Mieter 64 | G45: W | H45: 58.23 | I45: 0 | J45: 0 | K45: 0 | L45: 0 | M45: 86.8 | N45: 1.490640563
A46: AT | B46: Wien | C46: 1010 | D46: Teststraße 8 | E46: 209 |351809| | F46: Mieter 64 | G46: W | H46: 58.23 | I46: 1.062167268 | J46: 61.85 | K46: 1.042417998 | L46: 60.7 | M46: 147.8 | N46: 2.538210544
A47: AT | B47: Wien | C47: 1010 | D47: Teststraße 8 | E47: 210 |240| | F47: Mieter 45 | G47: W | H47: 46 | I47: 8.29673913 | J47: 381.65 | K47: 8.29673913 | L47: 381.65 | M47: 68.57 | N47: 1.490652174
A48: AT | B48: Wien | C48: 1010 | D48: Teststraße 8 | E48: 210 |351810| | F48: Mieter 45 | G48: W | H48: 46 | I48: 8.618695652 | J48: 396.46 | K48: 8.29673913 | L48: 381.65 | M48: 116.76 | N48: 2.53826087
A49: AT | B49: Wien | C49: 1010 | D49: Teststraße 8 | E49: 211 |250| | F49: Mieter 65 | G49: W | H49: 37.65 | I49: 8.117928287 | J49: 305.64 | K49: 8.117928287 | L49: 305.64 | M49: 56.12 | N49: 1.490571049
A50: AT | B50: Wien | C50: 1010 | D50: Teststraße 8 | E50: 211 |351811| | F50: Mieter 65 | G50: W | H50: 37.65 | I50: 8.130146082 | J50: 306.1 | K50: 8.117928287 | L50: 305.64 | M50: 95.56 | N50: 2.53811421
A51: AT | B51: Wien | C51: 1010 | D51: Teststraße 8 | E51: 212 |260| | F51: Mieter 66 | G51: W | H51: 57.81 | I51: 8.579311538 | J51: 495.97 | K51: 8.579311538 | L51: 495.97 | M51: 86.17 | N51: 1.490572565
A52: AT | B52: Wien | C52: 1010 | D52: Teststraße 8 | E52: 212 |351812| | F52: Mieter 66 | G52: W | H52: 57.81 | I52: 8.979761287 | J52: 519.12 | K52: 8.579311538 | L52: 495.97 | M52: 146.74 | N52: 2.53831517
A53: AT | B53: Wien | C53: 1010 | D53: Teststraße 8 | E53: 213 |270| | F53: Mieter 67 | G53: W | H53: 72 | I53: 8.622916667 | J53: 620.85 | K53: 8.622916667 | L53: 620.85 | M53: 107.33 | N53: 1.490694444
A54: AT | B54: Wien | C54: 1010 | D54: Teststraße 8 | E54: 213 |351813| | F54: Mieter 67 | G54: W | H54: 72 | I54: 8.629722222 | J54: 621.34 | K54: 8.622916667 | L54: 620.85 | M54: 182.76 | N54: 2.538333333
A55: AT | B55: Wien | C55: 1010 | D55: Teststraße 8 | E55: 214 |280| | F55: Mieter 68 | G55: W | H55: 32.11 | I55: 8.483027094 | J55: 272.39 | K55: 8.483027094 | L55: 272.39 | M55: 47.86 | N55: 1.490501401
A56: AT | B56: Wien | C56: 1010 | D56: Teststraße 8 | E56: 214 |351814| | F56: Mieter 68 | G56: W | H56: 32.11 | I56: 8.627841794 | J56: 277.04 | K56: 8.483027094 | L56: 272.39 | M56: 81.5 | N56: 2.538150109
A57: AT | B57: Wien | C57: 1010 | D57: Teststraße 8 | E57: 215 |290| | F57: Mieter 69 | G57: W | H57: 41.63 | I57: 8.828008648 | J57: 367.51 | K57: 8.828008648 | L57: 367.51 | M57: 62.06 | N57: 1.490751862
A58: AT | B58: Wien | C58: 1010 | D58: Teststraße 8 | E58: 215 |351815| | F58: Mieter 69 | G58: W | H58: 41.63 | I58: 8.914965169 | J58: 371.13 | K58: 8.828008648 | L58: 367.51 | M58: 105.67 | N58: 2.538313716
A59: AT | B59: Wien | C59: 1010 | D59: Teststraße 8 | E59: 216 |300| | F59: Mieter 70 | G59: W | H59: 36.44 | I59: 8.668496158 | J59: 315.88 | K59: 8.668496158 | L59: 315.88 | M59: 54.32 | N59: 1.490669594
A60: AT | B60: Wien | C60: 1010 | D60: Teststraße 8 | E60: 216 |351816| | F60: Mieter 70 | G60: W | H60: 36.44 | I60: 8.82025247 | J60: 321.41 | K60: 8.668496158 | L60: 315.88 | M60: 92.5 | N60: 2.538419319
A61: AT | B61: Wien | C61: 1010 | D61: Teststraße 8 | E61: 217 |310| | F61: Mieter 71 | G61: W | H61: 59.26 | I61: 8.620654742 | J61: 510.86 | K61: 8.620654742 | L61: 510.86 | M61: 88.34 | N61: 1.490718866
A62: AT | B62: Wien | C62: 1010 | D62: Teststraße 8 | E62: 217 |351817| | F62: Mieter 71 | G62: W | H62: 59.26 | I62: 8.726628417 | J62: 517.14 | K62: 8.620654742 | L62: 510.86 | M62: 150.42 | N62: 2.538305771
A63: AT | B63: Berlin | C63: 10115 | D63: Teststraße 1 | E63: 10 |90| | F63: Mieter 3 | G63: W | H63: 72 | I63: 1.887083333 | J63: 135.87 | K63: 1.887083333 | L63: 135.87 | M63: 108.99 | N63: 1.51375
A64: AT | B64: Berlin | C64: 10115 | D64: Teststraße 1 | E64: 11 |100| | F64: Mieter 4 | G64: W | H64: 50 | I64: 2.069 | J64: 103.45 | K64: 2.069 | L64: 103.45 | M64: 75 | N64: 1.5
A65: AT | B65: Berlin | C65: 10115 | D65: Teststraße 1 | E65: 12 |110| | F65: Mieter 5 | G65: W | H65: 52 | I65: 1.490769231 | J65: 77.52 | K65: 1.490769231 | L65: 77.52 | M65: 81.48 | N65: 1.566923077
A66: AT | B66: Berlin | C66: 10115 | D66: Teststraße 1 | E66: 13 |120| | F66: Mieter 6 | G66: W | H66: 57 | I66: =IF(H66=0,0,J66/H66) -> 2.220526316 | J66: 126.57 | K66: =IF(H66=0,0,L66/H66) -> 2.220526316 | L66: 126.57 | M66: 88.69 | N66: =IF(H66=0,0,M66/H66) -> 1.555964912
A67: AT | B67: Berlin | C67: 10115 | D67: Teststraße 1 | E67: 16 |150| | F67: Mieter 7 | G67: W | H67: 54 | I67: 1.515 | J67: 81.81 | K67: 1.515 | L67: 81.81 | M67: 82.87 | N67: 1.53462963
A68: AT | B68: Berlin | C68: 10115 | D68: Teststraße 1 | E68: 18 |170| | F68: Mieter 8 | G68: W | H68: 78 | I68: 1.463589744 | J68: 114.16 | K68: 1.463589744 | L68: 114.16 | M68: 120.61 | N68: 1.546282051
A69: AT | B69: Berlin | C69: 10115 | D69: Teststraße 1 | E69: 4 |40| | F69: Mieter 1 | G69: W | H69: 20 | I69: 1.4905 | J69: 29.81 | K69: 1.4905 | L69: 29.81 | M69: 30.35 | N69: 1.5175
A70: AT | B70: Berlin | C70: 10115 | D70: Teststraße 1 | E70: 9 |80| | F70: Mieter 2 | G70: W | H70: 57 | I70: 4.588070175 | J70: 261.52 | K70: 4.588070175 | L70: 261.52 | M70: 89.76 | N70: 1.574736842
A71: AT | B71: Berlin | C71: 10115 | D71: Teststraße 3 | E71: 002+003 |10| | F71: Mieter 9 | G71: L | H71: 46 | I71: 0.4197826087 | J71: 19.31 | K71: 0.4197826087 | L71: 19.31 | M71: 106.6 | N71: 2.317391304
A72: AT | B72: Berlin | C72: 10115 | D72: Teststraße 3 | E72: 005+006 |30| | F72: Mieter 10 | G72: W | H72: 45.61 | I72: 6.645691734 | J72: 303.11 | K72: 6.645691734 | L72: 303.11 | M72: 108.26 | N72: 2.37360228
A73: AT | B73: Berlin | C73: 10115 | D73: Teststraße 3 | E73: 007+007A |40| | F73: Mieter 11 | G73: W | H73: 40.35 | I73: 6.125402726 | J73: 247.16 | K73: 6.125402726 | L73: 247.16 | M73: 95.78 | N73: 2.373729864
A74: AT | B74: Berlin | C74: 10115 | D74: Teststraße 3 | E74: 012+012A |90| | F74: Mieter 16 | G74: W | H74: 39.97 | I74: 6.1113335 | J74: 244.27 | K74: 6.1113335 | L74: 244.27 | M74: 94.9 | N74: 2.374280711
A75: AT | B75: Berlin | C75: 10115 | D75: Teststraße 3 | E75: 013+014A |100| | F75: Mieter 20 | G75: W | H75: 68.07 | I75: 6.690318789 | J75: 455.41 | K75: 6.690318789 | L75: 455.41 | M75: 160.25 | N75: 2.354194212
A76: AT | B76: Berlin | C76: 10115 | D76: Teststraße 3 | E76: 016+016A |120| | F76: Mieter 18 | G76: W | H76: 41 | I76: 6.843170732 | J76: 280.57 | K76: 6.843170732 | L76: 280.57 | M76: 95.53 | N76: 2.33
A77: AT | B77: Berlin | C77: 10115 | D77: Teststraße 3 | E77: 017+018A |130| | F77: Mieter 19 | G77: W | H77: 69 | I77: 5.255217391 | J77: 362.61 | K77: 5.255217391 | L77: 362.61 | M77: 160.56 | N77: 2.326956522
A78: AT | B78: Berlin | C78: 10115 | D78: Teststraße 3 | E78: 10 |70| | F78: Mieter 14 | G78: W | H78: 57.71 | I78: 7.61566453 | J78: 439.5 | K78: 7.61566453 | L78: 439.5 | M78: 134.71 | N78: 2.334257494
A79: AT | B79: Berlin | C79: 10115 | D79: Teststraße 3 | E79: 11 |80| | F79: Mieter 15 | G79: W | H79: 24.85 | I79: 4.822132797 | J79: 119.83 | K79: 4.822132797 | L79: 119.83 | M79: 57.12 | N79: 2.298591549
A80: AT | B80: Berlin | C80: 10115 | D80: Teststraße 3 | E80: 15 |110| | F80: Mieter 17 | G80: W | H80: 25.34 | I80: 2.675217048 | J80: 67.79 | K80: 2.675217048 | L80: 67.79 | M80: 60.31 | N80: 2.380031571
A81: AT | B81: Berlin | C81: 10115 | D81: Teststraße 3 | E81: 4 |20| | F81: Mieter 21 | G81: W | H81: 33 | I81: 6.027878788 | J81: 198.92 | K81: 6.027878788 | L81: 198.92 | M81: 79.18 | N81: 2.399393939
A82: AT | B82: Berlin | C82: 10115 | D82: Teststraße 3 | E82: 8 |50| | F82: Mieter 12 | G82: W | H82: 23.88 | I82: 3.030569514 | J82: 72.37 | K82: 3.030569514 | L82: 72.37 | M82: 56.57 | N82: 2.368927973
A83: AT | B83: Berlin | C83: 10115 | D83: Teststraße 3 | E83: 9 |60| | F83: Mieter 13 | G83: W | H83: 47.26 | I83: 5.715404147 | J83: 270.11 | K83: 5.715404147 | L83: 270.11 | M83: 112.87 | N83: 2.388277613
A84: AT | B84: Berlin | C84: 10115 | D84: Teststraße 9 | E84: 001-7 |10| | F84: Mieter 74 | G84: G | H84: 348 | I84: 10.91801724 | J84: 3799.47 | K84: 10.91801724 | L84: 3799.47 | M84: 543.34 | N84: 1.561321839
A85: AT | B85: Berlin | C85: 10115 | D85: Teststraße 9 | E85: 008-9 |20| | F85: Mieter 75 | G85: G | H85: 75.01 | I85: 5.189841354 | J85: 389.29 | K85: 5.189841354 | L85: 389.29 | M85: 117.26 | N85: 1.563258232
A86: AT | B86: Berlin | C86: 10115 | D86: Teststraße 9 | E86: 010-11 |30| | F86: Mieter 76 | G86: W | H86: 63.52 | I86: 6.942222922 | J86: 440.97 | K86: 6.942222922 | L86: 440.97 | M86: 102.41 | N86: 1.612248111
A87: AT | B87: Berlin | C87: 10115 | D87: Teststraße 9 | E87: 016+17 |80| | F87: Mieter 81 | G87: W | H87: 64.21 | I87: 7.821990344 | J87: 502.25 | K87: 7.821990344 | L87: 502.25 | M87: 102.62 | N87: 1.598193428
A88: AT | B88: Berlin | C88: 10115 | D88: Teststraße 9 | E88: 020-21 |120| | F88: Mieter 84 | G88: W | H88: 66.33 | I88: 1.249811548 | J88: 82.9 | K88: 1.249811548 | L88: 82.9 | M88: 106.8 | N88: 1.610131162
A89: AT | B89: Berlin | C89: 10115 | D89: Teststraße 9 | E89: 037+038 |390| | F89: Mieter 105 | G89: W | H89: 58.42 | I89: 8.21841835 | J89: 480.12 | K89: 8.21841835 | L89: 480.12 | M89: 92.13 | N89: 1.577028415
A90: AT | B90: Berlin | C90: 10115 | D90: Teststraße 9 | E90: 040+41 |270| | F90: Mieter 95 | G90: W | H90: 66.63 | I90: 7.909650308 | J90: 527.02 | K90: 7.909650308 | L90: 527.02 | M90: 108.41 | N90: 1.627044875
A91: AT | B91: Berlin | C91: 10115 | D91: Teststraße 9 | E91: 044-45 |310| | F91: Mieter 98 | G91: W | H91: 80 | I91: 3.1415 | J91: 251.32 | K91: 3.1415 | L91: 251.32 | M91: 128.68 | N91: 1.6085
A92: AT | B92: Berlin | C92: 10115 | D92: Teststraße 9 | E92: 046-47 |320| | F92: Mieter 99 | G92: W | H92: 65.64 | I92: 1.542352224 | J92: 101.24 | K92: 1.542352224 | L92: 101.24 | M92: 105.94 | N92: 1.613954906
A93: AT | B93: Berlin | C93: 10115 | D93: Teststraße 9 | E93: 048-49 |330| | F93: Mieter 100 | G93: W | H93: 78.53 | I93: 8.295428499 | J93: 651.44 | K93: 8.295428499 | L93: 651.44 | M93: 125.94 | N93: 1.603718324
A94: AT | B94: Berlin | C94: 10115 | D94: Teststraße 9 | E94: 12 |40| | F94: Mieter 77 | G94: W | H94: 33.23 | I94: 4.983448691 | J94: 165.6 | K94: 4.983448691 | L94: 165.6 | M94: 52.01 | N94: 1.565151971
A95: AT | B95: Berlin | C95: 10115 | D95: Teststraße 9 | E95: 13 |50| | F95: Mieter 78 | G95: W | H95: 63.5 | I95: 0.9932283465 | J95: 63.07 | K95: 0.9932283465 | L95: 63.07 | M95: 100.94 | N95: 1.589606299
A96: AT | B96: Berlin | C96: 10115 | D96: Teststraße 9 | E96: 14 |60| | F96: Mieter 79 | G96: W | H96: 46 | I96: 0 | J96: 0 | K96: 0 | L96: 0 | M96: 73.39 | N96: 1.595434783
A97: AT | B97: Berlin | C97: 10115 | D97: Teststraße 9 | E97: 15 |70| | F97: Mieter 80 | G97: W | H97: 32.3 | I97: 1.008978328 | J97: 32.59 | K97: 1.008978328 | L97: 32.59 | M97: 51.37 | N97: 1.590402477
A98: AT | B98: Berlin | C98: 10115 | D98: Teststraße 9 | E98: 18 |100| | F98: Mieter 82 | G98: W | H98: 32 | I98: 0 | J98: 0 | K98: 0 | L98: 0 | M98: 51.16 | N98: 1.59875
A99: AT | B99: Berlin | C99: 10115 | D99: Teststraße 9 | E99: 19 |110| | F99: Mieter 83 | G99: W | H99: 41.15 | I99: 0 | J99: 0 | K99: 0 | L99: 0 | M99: 64.43 | N99: 1.565735115
A100: AT | B100: Berlin | C100: 10115 | D100: Teststraße 9 | E100: 22 |130| | F100: Mieter 107 | G100: W | H100: 32.41 | I100: 8.23603826 | J100: 266.93 | K100: 8.23603826 | L100: 266.93 | M100: 51.89 | N100: 1.601049059
A101: AT | B101: Berlin | C101: 10115 | D101: Teststraße 9 | E101: 23 |140| | F101: Mieter 85 | G101: W | H101: 62 | I101: 3.131129032 | J101: 194.13 | K101: 3.131129032 | L101: 194.13 | M101: 98.34 | N101: 1.586129032
A102: AT | B102: Berlin | C102: 10115 | D102: Teststraße 9 | E102: 24 |150| | F102: Mieter 86 | G102: W | H102: 37.53 | I102: 0 | J102: 0 | K102: 0 | L102: 0 | M102: 58.93 | N102: 1.570210498
A103: AT | B103: Berlin | C103: 10115 | D103: Teststraße 9 | E103: 25 |160| | F103: Mieter 86 | G103: W | H103: 37.53 | I103: 0 | J103: 0 | K103: 0 | L103: 0 | M103: 59.13 | N103: 1.575539568
A104: AT | B104: Berlin | C104: 10115 | D104: Teststraße 9 | E104: 28 |180| | F104: Mieter 87 | G104: W | H104: 32 | I104: 0 | J104: 0 | K104: 0 | L104: 0 | M104: 50.51 | N104: 1.5784375
A105: AT | B105: Berlin | C105: 10115 | D105: Teststraße 9 | E105: 29 |190| | F105: Mieter 88 | G105: W | H105: 48 | I105: 5.406875 | J105: 259.53 | K105: 5.406875 | L105: 259.53 | M105: 76.18 | N105: 1.587083333
A106: AT | B106: Berlin | C106: 10115 | D106: Teststraße 9 | E106: 30 |200| | F106: Mieter 89 | G106: W | H106: 34 | I106: 7.654117647 | J106: 260.24 | K106: 7.654117647 | L106: 260.24 | M106: 53.73 | N106: 1.580294118
A107: AT | B107: Berlin | C107: 10115 | D107: Teststraße 9 | E107: 31 |210| | F107: Mieter 90 | G107: W | H107: 32 | I107: 8.57375 | J107: 274.36 | K107: 8.57375 | L107: 274.36 | M107: 51.22 | N107: 1.600625
A108: AT | B108: Berlin | C108: 10115 | D108: Teststraße 9 | E108: 32 |400| | F108: Mieter 106 | G108: W | H108: 32.89 | I108: 1.511097598 | J108: 49.7 | K108: 1.511097598 | L108: 49.7 | M108: 51.33 | N108: 1.560656735
A109: AT | B109: Berlin | C109: 10115 | D109: Teststraße 9 | E109: 33 |220| | F109: Mieter 91 | G109: W | H109: 64 | I109: 2.12015625 | J109: 135.69 | K109: 2.12015625 | L109: 135.69 | M109: 101.82 | N109: 1.5909375
A110: AT | B110: Berlin | C110: 10115 | D110: Teststraße 9 | E110: 34 |230| | F110: Mieter 92 | G110: W | H110: 46 | I110: 0 | J110: 0 | K110: 0 | L110: 0 | M110: 71.41 | N110: 1.552391304
A111: AT | B111: Berlin | C111: 10115 | D111: Teststraße 9 | E111: 35 |240| | F111: Mieter 92 | G111: W | H111: 32 | I111: 7.610625 | J111: 243.54 | K111: 7.610625 | L111: 243.54 | M111: 50.56 | N111: 1.58
A112: AT | B112: Berlin | C112: 10115 | D112: Teststraße 9 | E112: 36 |250| | F112: Mieter 93 | G112: W | H112: 38.45 | I112: 8.21846554 | J112: 316 | K112: 8.21846554 | L112: 316 | M112: 61.44 | N112: 1.597919376
A113: AT | B113: Berlin | C113: 10115 | D113: Teststraße 9 | E113: 39 |260| | F113: Mieter 94 | G113: W | H113: 46 | I113: 0 | J113: 0 | K113: 0 | L113: 0 | M113: 74.53 | N113: 1.620217391
A114: AT | B114: Berlin | C114: 10115 | D114: Teststraße 9 | E114: 42 |290| | F114: Mieter 96 | G114: W | H114: 33.05 | I114: 3.171255673 | J114: 104.81 | K114: 3.171255673 | L114: 104.81 | M114: 53.16 | N114: 1.608472012
A115: AT | B115: Berlin | C115: 10115 | D115: Teststraße 9 | E115: 43 |300| | F115: Mieter 97 | G115: W | H115: 65.64 | I115: 4.33820841 | J115: 284.76 | K115: 4.33820841 | L115: 284.76 | M115: 102.2 | N115: 1.556977453
A116: AT | B116: Berlin | C116: 10115 | D116: Teststraße 9 | E116: 50 |340| | F116: Mieter 101 | G116: W | H116: 71.63 | I116: 7.931034483 | J116: 568.1 | K116: 7.931034483 | L116: 568.1 | M116: 113.51 | N116: 1.584671227
A117: AT | B117: Berlin | C117: 10115 | D117: Teststraße 9 | E117: 51 |350| | F117: Mieter 102 | G117: B | H117: 99.3 | I117: 11.80362538 | J117: 1172.1 | K117: 11.80362538 | L117: 1172.1 | M117: 159.63 | N117: 1.60755287
A118: AT | B118: Berlin | C118: 10115 | D118: Teststraße 9 | E118: 52 |360| | F118: Mieter 103 | G118: W | H118: 65.78 | I118: 6.707813925 | J118: 441.24 | K118: 6.707813925 | L118: 441.24 | M118: 106.13 | N118: 1.613408331
A119: AT | B119: Berlin | C119: 10115 | D119: Teststraße 9 | E119: 53 |370| | F119: Mieter 108 | G119: W | H119: 61.77 | I119: 9.318439372 | J119: 575.6 | K119: 9.318439372 | L119: 575.6 | M119: 98.47 | N119: 1.59413955
A120: AT | B120: Berlin | C120: 10115 | D120: Teststraße 9 | E120: 54 |380| | F120: Mieter 104 | G120: W | H120: 85.16 | I120: 6.431305777 | J120: 547.69 | K120: 6.431305777 | L120: 547.69 | M120: 132.02 | N120: 1.550258337
A121: AT | B121: WIEN | C121: 1020 | D121: Halmgasse 2 | E121: 13 |316147| | F121: ELISABETH GOSCH | G121: W | H121: 115.84 | I121: 0 | J121: 0 | K121: 1.536343232 | L121: 177.97 | M121: 187.45 | N121: 1.618180249 | O121: 1992-10-01
A122: AT | B122: WIEN | C122: 1030 | D122: Barichgasse 6 A | E122: 12 |607195| | F122: Helga Wimmer | G122: W | H122: 69.68 | I122: 0 | J122: 0 | K122: 1.540040184 | L122: 107.31 | M122: 101.16 | N122: 1.451779564 | O122: 2010-01-01
A123: AT | B123: WIEN | C123: 1030 | D123: Barichgasse 6 B | E123: 11 |607118| | F123: Mag. Dieter Sperl | G123: W | H123: 86.23 | I123: 0 | J123: 0 | K123: 5.137655108 | L123: 443.02 | M123: 125.19 | N123: 1.451814914 | O123: 2010-01-01
A124: AT | B124: Wien | C124: 1030 | D124: Teststraße 2 | E124: 10 |317347| | F124: Mieter 3 | G124: W | H124: 72 | I124: 1.887083333 | J124: 135.87 | K124: 1.819444444 | L124: 131 | M124: 108 | N124: 1.5
A125: AT | B125: Wien | C125: 1030 | D125: Teststraße 2 | E125: 10 |90| | F125: Mieter 3 | G125: W | H125: 72 | I125: 1.819444444 | J125: 131 | K125: 1.819444444 | L125: 131 | M125: 108 | N125: 1.5
A126: AT | B126: Wien | C126: 1030 | D126: Teststraße 2 | E126: 11 |100| | F126: Mieter 4 | G126: W | H126: 50 | I126: 1.9904 | J126: 99.52 | K126: 1.9904 | L126: 99.52 | M126: 75 | N126: 1.5
A127: AT | B127: Wien | C127: 1030 | D127: Teststraße 2 | E127: 11 |317348| | F127: Mieter 4 | G127: W | H127: 50 | I127: 2.0794 | J127: 103.97 | K127: 2.0006 | L127: 100.03 | M127: 75 | N127: 1.5
A128: AT | B128: Wien | C128: 1030 | D128: Teststraße 2 | E128: 12 |110| | F128: Mieter 5 | G128: W | H128: 52 | I128: 1.46 | J128: 75.92 | K128: 1.46 | L128: 75.92 | M128: 78 | N128: 1.5
A129: AT | B129: Wien | C129: 1030 | D129: Teststraße 2 | E129: 12 |317349| | F129: Mieter 5 | G129: W | H129: 52 | I129: 1.490769231 | J129: 77.52 | K129: 1.46 | L129: 75.92 | M129: 78 | N129: 1.5
A130: AT | B130: Wien | C130: 1030 | D130: Teststraße 2 | E130: 13 |120| | F130: Mieter 6 | G130: W | H130: 57 | I130: =IF(H130=0,0,J130/H130) -> 2.184912281 | J130: 124.54 | K130: =IF(H130=0,0,L130/H130) -> 2.184912281 | L130: 124.54 | M130: 85.5 | N130: =IF(H130=0,0,M130/H130) -> 1.5
A131: AT | B131: Wien | C131: 1030 | D131: Teststraße 2 | E131: 13 |317350| | F131: Mieter 6 | G131: W | H131: 57 | I131: 2.229649123 | J131: 127.09 | K131: 2.193684211 | L131: 125.04 | M131: 85.5 | N131: 1.5
A132: AT | B132: Wien | C132: 1030 | D132: Teststraße 2 | E132: 16 |150| | F132: Mieter 7 | G132: W | H132: 54 | I132: 1.46 | J132: 78.84 | K132: 1.46 | L132: 78.84 | M132: 81 | N132: 1.5
A133: AT | B133: Wien | C133: 1030 | D133: Teststraße 2 | E133: 16 |317353| | F133: Mieter 7 | G133: W | H133: 54 | I133: 1.523518519 | J133: 82.27 | K133: 1.468518519 | L133: 79.3 | M133: 81 | N133: 1.5
A134: AT | B134: Wien | C134: 1030 | D134: Teststraße 2 | E134: 18 |170| | F134: Mieter 8 | G134: W | H134: 78 | I134: 1.46 | J134: 113.88 | K134: 1.46 | L134: 113.88 | M134: 117 | N134: 1.5
A135: AT | B135: Wien | C135: 1030 | D135: Teststraße 2 | E135: 18 |317355| | F135: Mieter 8 | G135: W | H135: 78 | I135: 1.463589744 | J135: 114.16 | K135: 1.46 | L135: 113.88 | M135: 117 | N135: 1.5
A136: AT | B136: Wien | C136: 1030 | D136: Teststraße 2 | E136: 4 |317342| | F136: Mieter 1 | G136: W | H136: 20 | I136: 1.4905 | J136: 29.81 | K136: 1.46 | L136: 29.2 | M136: 30 | N136: 1.5
A137: AT | B137: Wien | C137: 1030 | D137: Teststraße 2 | E137: 4 |40| | F137: Mieter 1 | G137: W | H137: 20 | I137: 1.46 | J137: 29.2 | K137: 1.46 | L137: 29.2 | M137: 30 | N137: 1.5
A138: AT | B138: Wien | C138: 1030 | D138: Teststraße 2 | E138: 9 |317346| | F138: Mieter 2 | G138: W | H138: 57 | I138: 4.588070175 | J138: 261.52 | K138: 4.536842105 | L138: 258.6 | M138: 85.5 | N138: 1.5
A139: AT | B139: Wien | C139: 1030 | D139: Teststraße 2 | E139: 9 |80| | F139: Mieter 2 | G139: W | H139: 57 | I139: 4.536842105 | J139: 258.6 | K139: 4.536842105 | L139: 258.6 | M139: 85.5 | N139: 1.5
A140: AT | B140: Wien | C140: 1080 | D140: Teststraße 6 | E140: Ant. |210| | F140: Mieter 39 | G140: S | H140: 0 | I140: 0 | J140: 0 | K140: 0 | L140: 0 | M140: 0 | N140: 0
A141: AT | B141: Wien | C141: 1080 | D141: Teststraße 6 | E141: Ant. |355744| | F141: Mieter 39 | G141: S | H141: 0 | I141: 0 | J141: 401.8 | K141: 0 | L141: 397.03 | M141: 0 | N141: 0
A142: AT | B142: Wien | C142: 1080 | D142: Teststraße 6 | E142: EP01o |220| | F142: Mieter 41 | G142: GA | H142: 25 | I142: 0 | J142: 0 | K142: 0 | L142: 0 | M142: 0 | N142: 0
A143: AT | B143: Wien | C143: 1080 | D143: Teststraße 6 | E143: EP01o |355745| | F143: Mieter 41 | G143: P | H143: 0 | I143: 0 | J143: 122.19 | K143: 0 | L143: 120 | M143: 0 | N143: 0
A144: AT | B144: Wien | C144: 1080 | D144: Teststraße 6 | E144: EP02u |230| | F144: Mieter 40 | G144: GA | H144: 25 | I144: 0 | J144: 0 | K144: 0 | L144: 0 | M144: 0 | N144: 0
A145: AT | B145: Wien | C145: 1080 | D145: Teststraße 6 | E145: EP02u |355746| | F145: Mieter 40 | G145: P | H145: 0 | I145: 0 | J145: 123.41 | K145: 0 | L145: 120 | M145: 0 | N145: 0
A146: AT | B146: Wien | C146: 1080 | D146: Teststraße 6 | E146: EP03o |240| | F146: Mieter 41 | G146: GA | H146: 25 | I146: 0 | J146: 0 | K146: 0 | L146: 0 | M146: 0 | N146: 0
A147: AT | B147: Wien | C147: 1080 | D147: Teststraße 6 | E147: EP03o |355747| | F147: Mieter 41 | G147: P | H147: 0 | I147: 0 | J147: 120.35 | K147: 0 | L147: 120 | M147: 0 | N147: 0
A148: AT | B148: Wien | C148: 1080 | D148: Teststraße 6 | E148: EP04u |250| | F148: Mieter 41 | G148: GA | H148: 25 | I148: 0 | J148: 0 | K148: 0 | L148: 0 | M148: 0 | N148: 0
A149: AT | B149: Wien | C149: 1080 | D149: Teststraße 6 | E149: EP04u |355748| | F149: Mieter 41 | G149: P | H149: 0 | I149: 0 | J149: 125.73 | K149: 0 | L149: 120 | M149: 0 | N149: 0
A150: AT | B150: Wien | C150: 1080 | D150: Teststraße 6 | E150: EP05o |260| | F150: Mieter 40 | G150: GA | H150: 25 | I150: 0 | J150: 0 | K150: 0 | L150: 0 | M150: 0 | N150: 0
A151: AT | B151: Wien | C151: 1080 | D151: Teststraße 6 | E151: EP05o |355749| | F151: Mieter 40 | G151: P | H151: 0 | I151: 0 | J151: 123.36 | K151: 0 | L151: 120 | M151: 0 | N151: 0
A152: AT | B152: Wien | C152: 1080 | D152: Teststraße 6 | E152: EP06u |270| | F152: Mieter 40 | G152: GA | H152: 25 | I152: 0 | J152: 0 | K152: 0 | L152: 0 | M152: 0 | N152: 0
A153: AT | B153: Wien | C153: 1080 | D153: Teststraße 6 | E153: EP06u |355750| | F153: Mieter 40 | G153: P | H153: 0 | I153: 0 | J153: 123.02 | K153: 0 | L153: 120 | M153: 0 | N153: 0
A154: AT | B154: Wien | C154: 1080 | D154: Teststraße 6 | E154: EP07o |280| | F154: Mieter 43 | G154: GA | H154: 25 | I154: 0 | J154: 0 | K154: 0 | L154: 0 | M154: 0 | N154: 0
A155: AT | B155: Wien | C155: 1080 | D155: Teststraße 6 | E155: EP07o |355751| | F155: Mieter 43 | G155: P | H155: 0 | I155: 0 | J155: 125.54 | K155: 0 | L155: 120 | M155: 0 | N155: 0
A156: AT | B156: Wien | C156: 1080 | D156: Teststraße 6 | E156: EP08u |290| | F156: Mieter 40 | G156: GA | H156: 25 | I156: 0 | J156: 0 | K156: 0 | L156: 0 | M156: 0 | N156: 0
A157: AT | B157: Wien | C157: 1080 | D157: Teststraße 6 | E157: EP08u |355752| | F157: Mieter 40 | G157: P | H157: 0 | I157: 0 | J157: 125.34 | K157: 0 | L157: 120 | M157: 0 | N157: 0
A158: AT | B158: Wien | C158: 1080 | D158: Teststraße 6 | E158: EP09o |300| | F158: Mieter 40 | G158: GA | H158: 25 | I158: 0 | J158: 0 | K158: 0 | L158: 0 | M158: 0 | N158: 0
A159: AT | B159: Wien | C159: 1080 | D159: Teststraße 6 | E159: EP09o |355753| | F159: Mieter 40 | G159: P | H159: 0 | I159: 0 | J159: 121.12 | K159: 0 | L159: 120 | M159: 0 | N159: 0
A160: AT | B160: Wien | C160: 1080 | D160: Teststraße 6 | E160: EP10u |310| | F160: Mieter 40 | G160: GA | H160: 25 | I160: 0 | J160: 0 | K160: 0 | L160: 0 | M160: 0 | N160: 0
A161: AT | B161: Wien | C161: 1080 | D161: Teststraße 6 | E161: EP10u |355754| | F161: Mieter 40 | G161: P | H161: 0 | I161: 0 | J161: 122.28 | K161: 0 | L161: 120 | M161: 0 | N161: 0
A162: AT | B162: Wien | C162: 1080 | D162: Teststraße 6 | E162: EP11o |320| | F162: Mieter 40 | G162: GA | H162: 25 | I162: 0 | J162: 0 | K162: 0 | L162: 0 | M162: 0 | N162: 0
A163: AT | B163: Wien | C163: 1080 | D163: Teststraße 6 | E163: EP11o |355755| | F163: Mieter 40 | G163: P | H163: 0 | I163: 0 | J163: 122.72 | K163: 0 | L163: 120 | M163: 0 | N163: 0
A164: AT | B164: Wien | C164: 1080 | D164: Teststraße 6 | E164: EP12u |330| | F164: Mieter 40 | G164: GA | H164: 25 | I164: 0 | J164: 0 | K164: 0 | L164: 0 | M164: 0 | N164: 0
A165: AT | B165: Wien | C165: 1080 | D165: Teststraße 6 | E165: EP12u |355756| | F165: Mieter 40 | G165: P | H165: 0 | I165: 0 | J165: 121.27 | K165: 0 | L165: 120 | M165: 0 | N165: 0
A166: AT | B166: Wien | C166: 1080 | D166: Teststraße 6 | E166: EP13o |340| | F166: Mieter 40 | G166: GA | H166: 25 | I166: 0 | J166: 0 | K166: 0 | L166: 0 | M166: 0 | N166: 0
A167: AT | B167: Wien | C167: 1080 | D167: Teststraße 6 | E167: EP13o |355757| | F167: Mieter 40 | G167: P | H167: 0 | I167: 0 | J167: 125.19 | K167: 0 | L167: 120 | M167: 0 | N167: 0
A168: AT | B168: Wien | C168: 1080 | D168: Teststraße 6 | E168: EP14u |350| | F168: Mieter 44 | G168: GA | H168: 25 | I168: 0 | J168: 0 | K168: 0 | L168: 0 | M168: 0 | N168: 0
A169: AT | B169: Wien | C169: 1080 | D169: Teststraße 6 | E169: EP14u |355758| | F169: Mieter 44 | G169: P | H169: 0 | I169: 0 | J169: 121.4 | K169: 0 | L169: 120 | M169: 0 | N169: 0
A170: AT | B170: Wien | C170: 1080 | D170: Teststraße 6 | E170: EP15o |355759| | F170: Mieter 40 | G170: P | H170: 0 | I170: 0 | J170: 123.12 | K170: 0 | L170: 120 | M170: 0 | N170: 0
A171: AT | B171: Wien | C171: 1080 | D171: Teststraße 6 | E171: EP15o |360| | F171: Mieter 40 | G171: GA | H171: 25 | I171: 0 | J171: 0 | K171: 0 | L171: 0 | M171: 0 | N171: 0
A172: AT | B172: Wien | C172: 1080 | D172: Teststraße 6 | E172: EP16u |355760| | F172: Mieter 40 | G172: P | H172: 0 | I172: 0 | J172: 122.2 | K172: 0 | L172: 120 | M172: 0 | N172: 0
A173: AT | B173: Wien | C173: 1080 | D173: Teststraße 6 | E173: EP16u |370| | F173: Mieter 40 | G173: GA | H173: 25 | I173: 0 | J173: 0 | K173: 0 | L173: 0 | M173: 0 | N173: 0
A174: AT | B174: Wien | C174: 1080 | D174: Teststraße 6 | E174: EP17 |355761| | F174: Mieter 40 | G174: P | H174: 0 | I174: 0 | J174: 120.24 | K174: 0 | L174: 120 | M174: 0 | N174: 0
A175: AT | B175: Wien | C175: 1080 | D175: Teststraße 6 | E175: EP17 |380| | F175: Mieter 40 | G175: GA | H175: 25 | I175: 0 | J175: 0 | K175: 0 | L175: 0 | M175: 0 | N175: 0
A176: AT | B176: Wien | C176: 1080 | D176: Teststraße 6 | E176: EP18 |355762| | F176: Mieter 40 | G176: P | H176: 0 | I176: 0 | J176: 121.02 | K176: 0 | L176: 120 | M176: 0 | N176: 0
A177: AT | B177: Wien | C177: 1080 | D177: Teststraße 6 | E177: EP18 |390| | F177: Mieter 40 | G177: GA | H177: 25 | I177: 0 | J177: 0 | K177: 0 | L177: 0 | M177: 0 | N177: 0
A178: AT | B178: Wien | C178: 1080 | D178: Teststraße 6 | E178: 002b |355723| | F178: Mieter 23 | G178: B | H178: 1103 | I178: 4.17156845 | J178: 4601.24 | K178: 4.062366274 | L178: 4480.79 | M178: 1875.1 | N178: 1.7 | P178: 2011-10-21
A179: AT | B179: Wien | C179: 1080 | D179: Teststraße 6 | E179: 002b |40| | F179: Mieter 23 | G179: B | H179: 1103 | I179: 4.062366274 | J179: 4480.79 | K179: 4.062366274 | L179: 4480.79 | M179: 1213.3 | N179: 1.1
A180: AT | B180: Wien | C180: 1080 | D180: Teststraße 6 | E180: 002c |355724| | F180: Mieter 24 | G180: B | H180: 63.68 | I180: 8.226444724 | J180: 523.86 | K180: 7.860709799 | L180: 500.57 | M180: 70.05 | N180: 1.100031407
A181: AT | B181: Wien | C181: 1080 | D181: Teststraße 6 | E181: 002c |50| | F181: Mieter 24 | G181: B | H181: 63.68 | I181: 7.860709799 | J181: 500.57 | K181: 7.860709799 | L181: 500.57 | M181: 70.05 | N181: 1.100031407
A182: AT | B182: Wien | C182: 1080 | D182: Teststraße 6 | E182: 006a |355728| | F182: Mieter 28 | G182: W | H182: 84 | I182: 4.635952381 | J182: 389.42 | K182: 4.476190476 | L182: 376 | M182: 105 | N182: 1.25
A183: AT | B183: Wien | C183: 1080 | D183: Teststraße 6 | E183: 006a |90| | F183: Mieter 28 | G183: W | H183: 84 | I183: 4.476190476 | J183: 376 | K183: 4.476190476 | L183: 376 | M183: 92.4 | N183: 1.1
A184: AT | B184: Wien | C184: 1080 | D184: Teststraße 6 | E184: 006b |100| | F184: Mieter 29 | G184: W | H184: 62 | I184: 1.53483871 | J184: 95.16 | K184: 1.53483871 | L184: 95.16 | M184: 68.2 | N184: 1.1
A185: AT | B185: Wien | C185: 1080 | D185: Teststraße 6 | E185: 006b |355729| | F185: Mieter 29 | G185: W | H185: 62 | I185: 1.542580645 | J185: 95.64 | K185: 1.53483871 | L185: 95.16 | M185: 77.5 | N185: 1.25
A186: AT | B186: Wien | C186: 1080 | D186: Teststraße 6 | E186: 012a |160| | F186: Mieter 35 | G186: W | H186: 76 | I186: 4.083421053 | J186: 310.34 | K186: 4.083421053 | L186: 310.34 | M186: 83.6 | N186: 1.1
A187: AT | B187: Wien | C187: 1080 | D187: Teststraße 6 | E187: 012a |355735| | F187: Mieter 35 | G187: W | H187: 76 | I187: 4.227763158 | J187: 321.31 | K187: 4.083421053 | L187: 310.34 | M187: 95 | N187: 1.25
A188: AT | B188: Wien | C188: 1080 | D188: Teststraße 6 | E188: 012b |170| | F188: Mieter 36 | G188: W | H188: 96 | I188: 1.534583333 | J188: 147.32 | K188: 1.534583333 | L188: 147.32 | M188: 105.6 | N188: 1.1
A189: AT | B189: Wien | C189: 1080 | D189: Teststraße 6 | E189: 012b |355736| | F189: Mieter 36 | G189: W | H189: 96 | I189: 1.573541667 | J189: 151.06 | K189: 1.534583333 | L189: 147.32 | M189: 120 | N189: 1.25
A190: AT | B190: Wien | C190: 1080 | D190: Teststraße 6 | E190: 014A |355739| | F190: Mieter 38 | G190: B | H190: 72.5 | I190: 11.33089655 | J190: 821.49 | K190: 11.11655172 | L190: 805.95 | M190: 90.62 | N190: 1.249931034
A191: AT | B191: Wien | C191: 1080 | D191: Teststraße 6 | E191: 014A |90190| | F191: Mieter 38 | G191: B | H191: 72.5 | I191: 11.11655172 | J191: 805.95 | K191: 11.11655172 | L191: 805.95 | M191: 79.75 | N191: 1.1
A192: AT | B192: Wien | C192: 1080 | D192: Teststraße 6 | E192: 1A |10| | F192: Mieter 41 | G192: B | H192: 332.57 | I192: 16.06663259 | J192: 5343.28 | K192: 16.06663259 | L192: 5343.28 | M192: 365.83 | N192: 1.100009021
A193: AT | B193: Wien | C193: 1080 | D193: Teststraße 6 | E193: 1A |355720| | F193: Mieter 41 | G193: B | H193: 332.57 | I193: 16.18717864 | J193: 5383.37 | K193: 16.06663259 | L193: 5343.28 | M193: 565.37 | N193: 1.700003007
A194: AT | B194: Wien | C194: 1080 | D194: Teststraße 6 | E194: 1B |273210| | F194: Mieter 40 | G194: B | H194: 129.21 | I194: =IF(H194=0,0,J194/H194) -> 16.06655832 | J194: 2075.96 | K194: =IF(H194=0,0,L194/H194) -> 16.06655832 | L194: 2075.96 | M194: 142.13 | N194: =IF(H194=0,0,M194/H194) -> 1.099992261
A195: AT | B195: Wien | C195: 1080 | D195: Teststraße 6 | E195: 1B |375744| | F195: Mieter 40 | G195: B | H195: 129.21 | I195: 16.84753502 | J195: 2176.87 | K195: 16.06655832 | L195: 2075.96 | M195: 219.66 | N195: 1.700023218
A196: AT | B196: Wien | C196: 1080 | D196: Teststraße 6 | E196: 10 |140| | F196: Mieter 33 | G196: W | H196: 143 | I196: 2.306153846 | J196: 329.78 | K196: 2.306153846 | L196: 329.78 | M196: 157.3 | N196: 1.1
A197: AT | B197: Wien | C197: 1080 | D197: Teststraße 6 | E197: 10 |355733| | F197: Mieter 33 | G197: W | H197: 143 | I197: 2.391188811 | J197: 341.94 | K197: 2.306153846 | L197: 329.78 | M197: 178.75 | N197: 1.25
A198: AT | B198: Wien | C198: 1080 | D198: Teststraße 6 | E198: 11 |150| | F198: Mieter 34 | G198: W | H198: 124 | I198: 1.534516129 | J198: 190.28 | K198: 1.534516129 | L198: 190.28 | M198: 136.4 | N198: 1.1
A199: AT | B199: Wien | C199: 1080 | D199: Teststraße 6 | E199: 11 |355734| | F199: Mieter 34 | G199: W | H199: 124 | I199: 1.559354839 | J199: 193.36 | K199: 1.534516129 | L199: 190.28 | M199: 155 | N199: 1.25
A200: AT | B200: Wien | C200: 1080 | D200: Teststraße 6 | E200: 13 |180| | F200: Mieter 37 | G200: W | H200: 130 | I200: 1.534615385 | J200: 199.5 | K200: 1.534615385 | L200: 199.5 | M200: 143 | N200: 1.1
... 144 more rows

Sheet Größte Mieter
A1: metamagix.ICRS - Grösste Mieter
A3: Nutzung | B3: (Alle)
A4: Land | B4: (Alle)
A5: Ort | B5: (Alle)
A6: PLZ | B6: (Alle)
B8: Werte
A9: Zeilenbeschriftungen | B9: Istmiete pro Monat | C9: Belegte Fläche | D9: Betriebskosten pro Monat
A10: (Leer) | F10: (Leer) | I10: (Leer)
A11: Toro | B11: 500 | C11: 60 | D11: 0
A12: Mieter 46 | B12: 968.4 | C12: 247.76 | D12: 461.95
A13: Mieter 72 | B13: 696.52 | C13: 80.06 | D13: 161.27
A14: Mieter 47 | B14: 59.37 | C14: 111.88 | D14: 225.39
A15: Mieter 48 | B15: 599.44 | C15: 75.4 | D15: 151.9
A16: Mieter 49 | B16: 1280.3 | C16: 147.38 | D16: 296.9
A17: Mieter 50 | B17: 560.06 | C17: 64.84 | D17: 130.62
A18: Mieter 51 | B18: 725.76 | C18: 83.42 | D18: 168.04
A19: Mieter 52 | B19: 941.68 | C19: 110.18 | D19: 221.95
A20: Mieter 53 | B20: 47.68 | C20: 91.52 | D20: 184.36
A21: Mieter 54 | B21: 1015.14 | C21: 117.7 | D21: 237.09
A22: Mieter 73 | B22: 725.94 | C22: 82.82 | D22: 166.84
A23: Mieter 55 | B23: 676.8 | C23: 76.12 | D23: 153.33
A24: Mieter 56 | B24: 670.42 | C24: 108.16 | D24: 217.88
A25: Mieter 57 | B25: 936.82 | C25: 248.9 | D25: 464.06
A26: Mieter 58 | B26: 1255.18 | C26: 188.68 | D26: 351.8
A27: Mieter 59 | B27: 1136.64 | C27: 140.98 | D27: 284.01
A28: Mieter 60 | B28: 70.91 | C28: 135.86 | D28: 252.83
A29: Mieter 61 | B29: 589.6 | C29: 74.98 | D29: 151.03
A30: Mieter 62 | B30: 886.16 | C30: 113.02 | D30: 227.69
A31: Mieter 63 | B31: 690.32 | C31: 77.64 | D31: 156.41
A32: Mieter 64 | B32: 60.7 | C32: 116.46 | D32: 234.6
A33: Mieter 45 | B33: 763.3 | C33: 92 | D33: 185.33
A34: Mieter 65 | B34: 611.28 | C34: 75.3 | D34: 151.68
A35: Mieter 66 | B35: 991.94 | C35: 115.62 | D35: 232.91
A36: Mieter 67 | B36: 1241.7 | C36: 144 | D36: 290.09
A37: Mieter 68 | B37: 544.78 | C37: 64.22 | D37: 129.36
A38: Mieter 69 | B38: 735.02 | C38: 83.26 | D38: 167.73
A39: Mieter 70 | B39: 631.76 | C39: 72.88 | D39: 146.82
A40: Mieter 71 | B40: 1021.72 | C40: 118.52 | D40: 238.76
A41: Mieter 3 | B41: 397.87 | C41: 216 | D41: 324.99
A42: Mieter 4 | B42: 303 | C42: 150 | D42: 225
A43: Mieter 5 | B43: 229.36 | C43: 156 | D43: 237.48
A44: Mieter 6 | B44: 376.15 | C44: 171 | D44: 259.69
A45: Mieter 7 | B45: 239.95 | C45: 162 | D45: 244.87
A46: Mieter 8 | B46: 341.92 | C46: 234 | D46: 354.61
A47: Mieter 1 | B47: 88.21 | C47: 60 | D47: 90.35
A48: Mieter 2 | B48: 778.72 | C48: 171 | D48: 260.76
A49: Mieter 9 | B49: 57.53 | C49: 138 | D49: 318.2
A50: Mieter 10 | B50: 886.85 | C50: 136.83 | D50: 318.06
A51: Mieter 11 | B51: 723.18 | C51: 121.05 | D51: 281.38
A52: Mieter 16 | B52: 717.97 | C52: 119.91 | D52: 278.76
A53: Mieter 20 | B53: 1340.19 | C53: 204.21 | D53: 473.37
A54: Mieter 18 | B54: 834.11 | C54: 123 | D54: 284.13
A55: Mieter 19 | B55: 1081.59 | C55: 207 | D55: 477.98
A56: Mieter 14 | B56: 1294.5 | C56: 173.13 | D56: 396.91
A57: Mieter 15 | B57: 352.11 | C57: 74.55 | D57: 167.06
A58: Mieter 17 | B58: 203.01 | C58: 76.02 | D58: 176.87
A59: Mieter 21 | B59: 584.6 | C59: 99 | D59: 230.98
A60: Mieter 12 | B60: 213.73 | C60: 71.64 | D60: 166.41
A61: Mieter 13 | B61: 799.35 | C61: 141.78 | D61: 330.27
A62: Mieter 74 | B62: 11168.15 | C62: 1044 | D62: 1622.08
A63: Mieter 75 | B63: 1136.95 | C63: 225.03 | D63: 349.8
A64: Mieter 76 | B64: 1317.23 | C64: 190.56 | D64: 315.21
A65: Mieter 81 | B65: 1490.61 | C65: 192.63 | D65: 317.73
A66: Mieter 84 | B66: 241.82 | C66: 198.99 | D66: 329
A67: Mieter 105 | B67: 1394.82 | C67: 175.26 | D67: 287.84
A68: Mieter 95 | B68: 1568.2 | C68: 199.89 | D68: 331.63
A69: Mieter 98 | B69: 752.92 | C69: 240 | D69: 396.68
A70: Mieter 99 | B70: 301.38 | C70: 196.92 | D70: 325.83
A71: Mieter 100 | B71: 1935.56 | C71: 235.59 | D71: 389.01
A72: Mieter 77 | B72: 481.16 | C72: 99.69 | D72: 163.34
A73: Mieter 78 | B73: 186.27 | C73: 190.5 | D73: 313.68
A74: Mieter 79 | B74: 47.38 | C74: 138 | D74: 227.49
A75: Mieter 80 | B75: 97.29 | C75: 96.9 | D75: 159.59
A76: Mieter 82 | B76: 32.96 | C76: 96 | D76: 158.36
A77: Mieter 83 | B77: 344.85 | C77: 123.45 | D77: 202.28
A78: Mieter 107 | B78: 787.89 | C78: 97.23 | D78: 160.47
A79: Mieter 85 | B79: 576.05 | C79: 186 | D79: 306.04
A80: Mieter 86 | B80: 77.32 | C80: 225.18 | D80: 369.5
A81: Mieter 87 | B81: 32.96 | C81: 96 | D81: 157.71
A82: Mieter 88 | B82: 756.81 | C82: 144 | D82: 236.98
A83: Mieter 89 | B83: 773.12 | C83: 102 | D83: 167.63
A84: Mieter 90 | B84: 797.62 | C84: 96 | D84: 158.42
A85: Mieter 106 | B85: 145.74 | C85: 98.67 | D85: 161.51
A86: Mieter 91 | B86: 397.01 | C86: 192 | D86: 316.22
A87: Mieter 92 | B87: 765.24 | C87: 234 | D87: 383.27
A88: Mieter 93 | B88: 944.74 | C88: 115.35 | D88: 190.25
A89: Mieter 94 | B89: 47.38 | C89: 138 | D89: 228.63
A90: Mieter 96 | B90: 314.25 | C90: 99.15 | D90: 163.88
A91: Mieter 97 | B91: 840.24 | C91: 196.92 | D91: 322.09
A92: Mieter 101 | B92: 1673.08 | C92: 214.89 | D92: 353.48
A93: Mieter 102 | B93: 3438.6 | C93: 297.9 | D93: 492.29
A94: Mieter 103 | B94: 1283.98 | C94: 197.34 | D94: 326.5
A95: Mieter 108 | B95: 1687.46 | C95: 185.31 | D95: 305.39
A96: Mieter 104 | B96: 1606.31 | C96: 255.48 | D96: 417.31
A97: ELISABETH GOSCH | B97: 177.97 | C97: 115.84 | D97: 187.45
A98: Helga Wimmer | B98: 107.31 | C98: 69.68 | D98: 101.16
A99: Mag. Dieter Sperl | B99: 443.02 | C99: 86.23 | D99: 125.19
A100: Mieter 39 | B100: 397.03 | C100: 0 | D100: 0
A101: Mieter 41 | B101: 11046.56 | C101: 740.14 | D101: 931.2
A102: Mieter 40 | B102: 7323.82 | C102: 728.42 | D102: 532.16
A103: Mieter 43 | B103: 120 | C103: 25 | D103: 0
A104: Mieter 44 | B104: 120 | C104: 25 | D104: 0
A105: Mieter 23 | B105: 8961.58 | C105: 2206 | D105: 3088.4
A106: Mieter 24 | B106: 1001.14 | C106: 127.36 | D106: 140.1
A107: Mieter 28 | B107: 752 | C107: 168 | D107: 197.4
A108: Mieter 29 | B108: 190.32 | C108: 124 | D108: 145.7
A109: Mieter 35 | B109: 620.68 | C109: 152 | D109: 178.6
A110: Mieter 36 | B110: 294.64 | C110: 192 | D110: 225.6
A111: Mieter 38 | B111: 1611.9 | C111: 145 | D111: 170.37
A112: Mieter 33 | B112: 659.56 | C112: 286 | D112: 336.05
A113: Mieter 34 | B113: 380.56 | C113: 248 | D113: 291.4
A114: Mieter 37 | B114: 399 | C114: 260 | D114: 305.5
A115: Mieter 42 | B115: 18754.42 | C115: 1417.48 | D115: 2090.77
A116: Mieter 22 | B116: 44190.22 | C116: 2750.46 | D116: 4006.47
A117: Mieter 25 | B117: 2818 | C117: 269.6 | D117: 316.78
A118: Mieter 26 | B118: 518.7 | C118: 338 | D118: 397.15
A119: Mieter 27 | B119: 568.04 | C119: 268 | D119: 314.9
A120: Mieter 30 | B120: 395.92 | C120: 258 | D120: 303.15
A121: Mieter 31 | B121: 524.84 | C121: 342 | D121: 401.85
A122: Mieter 32 | B122: 579.84 | C122: 278 | D122: 326.65
A123: EuroAgentur Hotels & Travel | B123: 26640 | C123: 3647.2 | D123: 17800.27
A124: World Class Wenceslas Square | B124: 27882.24 | C124: 1539 | D124: 10700.81
A125: SPORT TOWN | B125: 48660.72 | C125: 1684.34 | D125: 9555.52
A126: ARGE Telekommunikations- | B126: 0 | C126: 0 | D126: 0
A127: SPAR Österr.WarenhandelsAG | B127: 0 | C127: 2500 | D127: 239.07
A128: KIK TEXTILIEN und Non-Food | B128: 5500 | C128: 579.19 | D128: 297.95
A129: RENO Schuhe GmbH | B129: 5756.32 | C129: 580 | D129: 298.34
A130: KLIER GMBH | B130: 1460.26 | C130: 100 | D130: 51.44
A131: BIPA Parfümerien GmbH | B131: 2881.56 | C131: 300 | D131: 154.32
A132: Gerhard WINKLER | B132: 1686.97 | C132: 123 | D132: 63.27
A133: Machlandapotheke OHG | B133: 2165.98 | C133: 200 | D133: 102.89
A134: TAKKO ModeMarkt GmbH | B134: 7382.07 | C134: 700 | D134: 360.07
A135: Dänisches Bettenlager | B135: 5314.63 | C135: 718 | D135: 360.12
A136: FUSSL Modestraße Mayr GmbH | B136: 6217.84 | C136: 900 | D136: 374.68
A137: BILLA AG | B137: 5844.88 | C137: 934 | D137: 502.62
A138: Mag.Robert RENNER | B138: 220.36 | C138: 65 | D138: 30.7
A139: GARTENCENTER GMBH | B139: 2361.62 | C139: 230 | D139: 118.31
A140: LIBRO HandelsGmbH | B140: 4432.79 | C140: 452.53 | D140: 172.69
A141: BK-Anteil ET | B141: 0 | C141: 0 | D141: 1
A142: MORSCHER Handels-GesmbH | B142: 1452.53 | C142: 140.87 | D142: 54.7
